bitfinex/quotes_BTCUSD_20241229
["timestamp","ask_amount","ask_price","bid_price","bid_amount"]
[1735470143946,1.1880854,95382.0,95381.0,0.0001708]
[1735470144144,1.1900854,95382.0,95381.0,0.0001708]
[1735470144301,1.1840854,95382.0,95381.0,0.0001708]
[1735470144467,4.2876304,95382.0,95381.0,0.0001708]
[1735470144701,4.2926304,95382.0,95381.0,0.0001708]
[1735470144906,4.2906304,95382.0,95381.0,0.0001708]
[1735470145504,4.2846304,95382.0,95381.0,0.0001708]
[1735470145884,4.2906304,95382.0,95381.0,0.0001708]
[1735470146092,4.2916304,95382.0,95381.0,0.0001708]
[1735470146506,4.2906304,95382.0,95381.0,0.0001708]
[1735470146722,4.30708351,95382.0,95381.0,0.0011708]
[1735470146966,4.42418351,95382.0,95381.0,0.0011708]
[1735470147170,4.42418351,95382.0,95381.0,0.0001708]
[1735470147324,4.42618351,95382.0,95381.0,0.0001708]
[1735470147534,4.42718351,95382.0,95381.0,0.0001708]
[1735470147733,4.48373059,95382.0,95381.0,0.0001708]
[1735470148143,4.47573059,95382.0,95381.0,0.0001708]
[1735470148487,4.48373059,95382.0,95381.0,0.0001708]
[1735470149017,4.48273059,95382.0,95381.0,0.0001708]
[1735470149217,4.48473059,95382.0,95381.0,0.0001708]
[1735470149629,4.47673059,95382.0,95381.0,0.0001708]
[1735470149836,4.47473059,95382.0,95381.0,0.0001708]
[1735470150035,4.48073059,95382.0,95381.0,0.0001708]
[1735470150798,4.48673059,95382.0,95381.0,0.0001708]
[1735470151841,4.48073059,95382.0,95381.0,0.0001708]
[1735470152248,4.48973059,95382.0,95381.0,0.0001708]
[1735470153521,4.47327748,95382.0,95381.0,0.0001708]
[1735470155500,4.79172539,95382.0,95381.0,0.0001708]
[1735470156809,4.80818013,95382.0,95381.0,0.0001708]
[1735470157635,4.48973222,95382.0,95381.0,0.0001708]
[1735470157839,4.48957362,95382.0,95381.0,0.0001708]
[1735470160189,4.48957382,95382.0,95381.0,0.0001708]
[1735470163616,4.47311908,95382.0,95381.0,0.0001708]
[1735470164038,0.05054708,95378.0,95367.0,0.06809095]
[1735470164243,4.284472,95377.0,95367.0,0.06809095]
[1735470164453,4.284472,95377.0,95367.0,0.06219079]
[1735470164678,4.284472,95377.0,95357.0,0.04750747]
[1735470166056,0.23578625,95370.0,95357.0,0.04750747]
[1735470166201,4.284472,95369.0,95357.0,0.04750747]
[1735470166799,0.01645498,95367.0,95357.0,0.04750747]
[1735470167014,4.284472,95366.0,95357.0,0.04750747]
[1735470168577,4.293472,95366.0,95357.0,0.04750747]
[1735470168766,4.284472,95365.0,95357.0,0.04750747]
[1735470170182,4.287472,95365.0,95350.0,0.03]
[1735470170384,4.284472,95364.0,95350.0,0.03]
[1735470171510,0.01645498,95367.0,95350.0,0.03]
[1735470171511,4.284472,95366.0,95350.0,0.03]
[1735470171717,0.009,95364.0,95350.0,0.03]
[1735470171920,4.284472,95363.0,95350.0,0.03]
[1735470172283,0.009,95364.0,95350.0,0.03]
[1735470172470,4.284472,95363.0,95350.0,0.03]
[1735470173104,4.286472,95363.0,95350.0,0.03]
[1735470173253,4.284472,95362.0,95350.0,0.03]
[1735470174858,4.293472,95362.0,95350.0,0.03]
[1735470175080,4.284472,95361.0,95350.0,0.03]
[1735470175880,0.01974136,95360.0,95350.0,0.03]
[1735470176123,4.284472,95359.0,95350.0,0.03]
[1735470176533,0.01645555,95358.0,95350.0,0.03]
[1735470176704,4.284472,95357.0,95350.0,0.03]
[1735470177134,4.284472,95357.0,95350.0,0.02590264]
[1735470177546,4.284472,95357.0,95353.0,8.54e-05]
[1735470177950,4.290472,95357.0,95353.0,8.54e-05]
[1735470178155,4.284472,95356.0,95353.0,8.54e-05]
[1735470178920,4.284472,95357.0,95353.0,8.54e-05]
[1735470179352,4.285472,95357.0,95353.0,8.54e-05]
[1735470179570,4.284472,95356.0,95353.0,8.54e-05]
[1735470179954,4.290472,95357.0,95353.0,8.54e-05]
[1735470180151,4.284472,95356.0,95353.0,8.54e-05]
[1735470180879,4.285472,95356.0,95353.0,8.54e-05]
[1735470181129,4.284472,95355.0,95353.0,8.54e-05]
[1735470182814,4.285472,95355.0,95353.0,8.54e-05]
[1735470183023,4.284472,95354.0,95353.0,8.54e-05]
[1735470184123,19.58041,96625.0,95353.0,8.54e-05]
[1735470184124,4.52025825,95358.0,95353.0,8.54e-05]
[1735470184343,0.005,95354.0,95353.0,8.54e-05]
[1735470184542,4.289472,95354.0,95353.0,8.54e-05]
[1735470186781,4.30592774,95354.0,95353.0,8.54e-05]
[1735470187541,4.32566888,95354.0,95353.0,8.54e-05]
[1735470189206,4.30921314,95354.0,95353.0,8.54e-05]
[1735470189407,4.30421314,95354.0,95353.0,8.54e-05]
[1735470189668,4.32166888,95354.0,95353.0,8.54e-05]
[1735470189850,4.32666888,95354.0,95353.0,8.54e-05]
[1735470190067,4.32566888,95354.0,95353.0,8.54e-05]
[1735470190503,4.32666888,95354.0,95353.0,8.54e-05]
[1735470192051,4.30692774,95354.0,95353.0,8.54e-05]
[1735470192260,4.30592774,95354.0,95353.0,8.54e-05]
[1735470192503,4.284472,95354.0,95353.0,8.54e-05]
[1735470192759,4.284472,95354.0,95353.0,0.0010854]
[1735470192986,4.287472,95354.0,95353.0,0.0010854]
[1735470195507,4.30392766,95354.0,95353.0,0.0010854]
[1735470196672,4.19145566,95354.0,95353.0,0.0783854]
[1735470198424,0.01945566,95354.0,95353.0,0.0783854]
[1735470198571,4.30392766,95354.0,95353.0,0.0783854]
[1735470199790,4.30392766,95354.0,95353.0,0.0773854]
[1735470199985,4.30092766,95354.0,95353.0,0.0773854]
[1735470200417,4.30392766,95354.0,95353.0,0.0773854]
[1735470201462,4.30409846,95354.0,95353.0,0.0773854]
[1735470201965,4.30509846,95354.0,95353.0,0.0773854]
[1735470202118,4.30409846,95354.0,95353.0,0.0773854]
[1735470202520,4.30409846,95354.0,95353.0,0.0783854]
[1735470202758,4.30109846,95354.0,95353.0,0.0783854]
[1735470202963,4.30409846,95354.0,95353.0,0.0773854]
[1735470203365,4.30109846,95354.0,95353.0,0.0773854]
[1735470203511,4.2876428,95354.0,95353.0,0.0773854]
[1735470204337,4.2876428,95354.0,95353.0,0.0783854]
[1735470204757,4.2876428,95354.0,95353.0,0.0773854]
[1735470205179,4.2876428,95354.0,95353.0,0.0783854]
[1735470205673,4.2846428,95354.0,95353.0,0.0773854]
[1735470205877,4.2876428,95354.0,95353.0,0.0783854]
[1735470206304,4.2846428,95354.0,95353.0,0.0783854]
[1735470206628,4.2876428,95354.0,95353.0,0.0783854]
[1735470206919,4.30409815,95354.0,95353.0,0.0783854]
[1735470207231,4.30109815,95354.0,95353.0,0.0783854]
[1735470207404,4.30109815,95354.0,95353.0,0.0773854]
[1735470207606,4.30409815,95354.0,95353.0,0.0773854]
[1735470207812,4.30409815,95354.0,95353.0,0.0783854]
[1735470208172,4.30409815,95354.0,95353.0,0.0773854]
[1735470208583,4.30409815,95354.0,95353.0,0.0783854]
[1735470208843,4.30109815,95354.0,95353.0,0.0783854]
[1735470208996,4.30409815,95354.0,95353.0,0.0783854]
[1735470209200,4.30409815,95354.0,95353.0,0.0773854]
[1735470209400,4.30409815,95354.0,95353.0,0.0783854]
[1735470209603,4.58704165,95354.0,95353.0,0.0783854]
[1735470209922,0.29956965,95354.0,95353.0,0.0010854]
[1735470210158,4.58404165,95354.0,95353.0,0.0010854]
[1735470210334,4.58704165,95354.0,95353.0,0.0010854]
[1735470210538,4.58704165,95354.0,95353.0,8.54e-05]
[1735470210719,4.59004165,95354.0,95353.0,8.54e-05]
[1735470210921,4.59004165,95354.0,95353.0,0.0010854]
[1735470211472,4.59004165,95354.0,95353.0,8.54e-05]
[1735470211679,4.59004165,95354.0,95353.0,0.0010854]
[1735470212216,4.58404165,95354.0,95353.0,8.54e-05]
[1735470212495,4.58704165,95354.0,95353.0,0.0010854]
[1735470212738,4.58404165,95354.0,95353.0,0.0010854]
[1735470213089,4.58704165,95354.0,95353.0,0.0010854]
[1735470213500,4.5675863,95354.0,95353.0,0.0010854]
[1735470213707,4.5675863,95354.0,95353.0,8.54e-05]
[1735470214050,4.5675863,95354.0,95353.0,0.0010854]
[1735470214176,4.5405863,95354.0,95353.0,0.0010854]
[1735470214576,4.302831,95354.0,95353.0,0.0010854]
[1735470215002,4.302831,95354.0,95353.0,8.54e-05]
[1735470215218,4.302831,95354.0,95353.0,0.0010854]
[1735470215403,4.52116341,95354.0,95353.0,0.0010854]
[1735470215600,4.52416341,95354.0,95353.0,0.0010854]
[1735470216431,4.284472,95354.0,95353.0,0.0010854]
[1735470216811,4.30392782,95354.0,95353.0,8.54e-05]
[1735470217421,4.30392782,95354.0,95353.0,0.0010854]
[1735470218585,4.30092782,95354.0,95350.0,0.02331442]
[1735470218758,4.284472,95353.0,95350.0,0.02331442]
[1735470219432,4.284472,95353.0,95350.0,0.02024307]
[1735470219632,4.284472,95353.0,95350.0,0.00621652]
[1735470220057,4.287472,95353.0,95350.0,0.00015259]
[1735470220250,4.284472,95352.0,95350.0,0.00015259]
[1735470221045,4.284472,95352.0,95350.0,0.00115259]
[1735470221499,4.284472,95352.0,95350.0,0.00015259]
[1735470221860,4.284472,95352.0,95350.0,0.00115259]
[1735470222218,4.284472,95353.0,95350.0,0.00115259]
[1735470222419,0.002,95352.0,95350.0,0.00115259]
[1735470222623,4.284472,95351.0,95350.0,0.00115259]
[1735470223023,4.284472,95351.0,95350.0,0.00015259]
[1735470223228,4.284472,95351.0,95350.0,0.00115259]
[1735470223430,4.287472,95353.0,95350.0,0.00115259]
[1735470223631,4.284472,95352.0,95350.0,0.00115259]
[1735470223853,4.284472,95354.0,95350.0,0.00015259]
[1735470224051,0.002,95351.0,95350.0,0.00115259]
[1735470224262,0.002,95351.0,95350.0,0.00123799]
[1735470224643,0.002,95351.0,95350.0,0.00023799]
[1735470224861,4.286472,95351.0,95350.0,0.00123799]
[1735470225270,4.284472,95351.0,95350.0,0.00123799]
[1735470225457,4.287472,95353.0,95350.0,0.00123799]
[1735470225643,4.284472,95352.0,95350.0,0.00123799]
[1735470226082,0.002,95351.0,95350.0,0.00023799]
[1735470226386,0.002,95351.0,95350.0,0.00123799]
[1735470226610,4.284472,95351.0,95350.0,0.00123799]
[1735470226915,0.01645602,95351.0,95350.0,0.00023799]
[1735470227125,4.30092802,95351.0,95350.0,0.00123799]
[1735470227556,4.30092802,95351.0,95350.0,0.00023799]
[1735470227856,4.30092802,95351.0,95350.0,0.00123799]
[1735470228553,4.30292802,95351.0,95350.0,0.00123799]
[1735470229168,4.30292802,95351.0,95350.0,0.00023799]
[1735470229471,4.30292802,95351.0,95350.0,0.00123799]
[1735470229931,4.30292802,95351.0,95350.0,0.00023799]
[1735470230135,4.30092802,95351.0,95350.0,0.00123799]
[1735470230547,4.30092802,95351.0,95350.0,0.00023799]
[1735470231570,4.30292802,95351.0,95350.0,0.00023799]
[1735470232113,4.30692802,95351.0,95350.0,0.00023799]
[1735470234858,4.30092802,95351.0,95350.0,0.00023799]
[1735470234998,4.30292802,95351.0,95350.0,0.00023799]
[1735470235453,4.58691653,95351.0,95350.0,0.00023799]
[1735470235770,4.58491653,95351.0,95350.0,0.00123799]
[1735470236092,4.58691653,95351.0,95350.0,0.00023799]
[1735470236449,4.58691653,95351.0,95350.0,0.00123799]
[1735470236646,4.30309882,95351.0,95350.0,0.00123799]
[1735470236870,4.30309882,95351.0,95350.0,0.00023799]
[1735470238003,4.2846428,95351.0,95350.0,0.00023799]
[1735470238145,4.2846428,95351.0,95350.0,0.00123799]
[1735470238360,4.57060834,95351.0,95350.0,0.00123799]
[1735470238657,4.56860834,95351.0,95350.0,0.00123799]
[1735470238823,4.56860834,95351.0,95350.0,0.00023799]
[1735470239044,4.57060834,95351.0,95350.0,0.00123799]
[1735470239231,4.56860834,95351.0,95350.0,0.00123799]
[1735470239385,4.57060834,95351.0,95350.0,0.00023799]
[1735470239802,4.58506508,95351.0,95350.0,0.00123799]
[1735470240004,4.58706508,95351.0,95350.0,0.00123799]
[1735470241356,4.58506508,95351.0,95350.0,0.00023799]
[1735470241584,4.58706508,95351.0,95350.0,0.00023799]
[1735470241998,4.30309954,95351.0,95350.0,0.00023799]
[1735470242222,4.30309954,95351.0,95350.0,0.00123799]
[1735470242615,4.30309954,95351.0,95350.0,0.00023799]
[1735470242881,4.30109954,95351.0,95350.0,0.00023799]
[1735470243090,4.30309954,95351.0,95350.0,0.00123799]
[1735470244246,4.30109954,95351.0,95350.0,0.00023799]
[1735470244468,4.30309954,95351.0,95350.0,0.00023799]
[1735470244846,4.0983608,95351.0,95350.0,0.00123799]
[1735470245056,4.1013608,95351.0,95350.0,0.00123799]
[1735470245274,4.1013608,95351.0,95350.0,0.00023799]
[1735470245827,4.1013608,95351.0,95350.0,0.00123799]
[1735470247895,4.11781754,95351.0,95350.0,0.00123799]
[1735470248315,0.01962754,95351.0,95350.0,0.00123799]
[1735470248519,4.11781754,95351.0,95350.0,0.00123799]
[1735470248731,0.01962754,95351.0,95343.0,0.07394557]
[1735470248899,4.09819,95350.0,95343.0,0.07445436]
[1735470251458,4.10119,95350.0,95343.0,0.07445436]
[1735470251599,4.09819,95349.0,95343.0,0.07545436]
[1735470252836,4.09819,95350.0,95343.0,0.07545436]
[1735470253386,4.09819,95350.0,95343.0,0.07445436]
[1735470253583,4.09819,95350.0,95343.0,0.07645436]
[1735470254080,4.09819,95350.0,95343.0,0.07445436]
[1735470254295,4.09819,95350.0,95343.0,0.07645436]
[1735470254905,4.09819,95350.0,95343.0,0.07445436]
[1735470255106,4.09819,95350.0,95343.0,0.07645436]
[1735470256313,4.09819,95350.0,95343.0,0.07445436]
[1735470256492,4.09819,95350.0,95343.0,0.07645436]
[1735470257221,4.09819,95350.0,95343.0,0.07445436]
[1735470257436,4.09819,95350.0,95343.0,0.07645436]
[1735470257646,0.01645676,95349.0,95343.0,0.07645436]
[1735470257868,4.09819,95348.0,95343.0,0.07445436]
[1735470258296,4.09819,95348.0,95343.0,0.07545436]
[1735470259414,4.09819,95348.0,95343.0,0.07445436]
[1735470259819,4.09819,95348.0,95343.0,0.07653976]
[1735470260424,4.09819,95348.0,95343.0,0.07453976]
[1735470260661,4.0983608,95348.0,95343.0,0.07453976]
[1735470260873,4.0983608,95348.0,95343.0,0.07653976]
[1735470261080,4.09819,95347.0,95343.0,0.07653976]
[1735470261298,4.09819,95347.0,95343.0,0.07453976]
[1735470262607,4.09819,95347.0,95343.0,0.07653976]
[1735470263178,4.09819,95347.0,95343.0,0.07453976]
[1735470263350,4.09819,95347.0,95343.0,0.07653976]
[1735470263915,4.09819,95347.0,95343.0,0.07453976]
[1735470264316,4.09819,95347.0,95343.0,0.07653976]
[1735470265455,4.09819,95347.0,95343.0,0.06952048]
[1735470265656,4.09819,95347.0,95343.0,0.06752048]
[1735470266013,4.09819,95347.0,95343.0,0.06952048]
[1735470266542,4.09819,95347.0,95343.0,0.06752048]
[1735470266691,4.09819,95347.0,95343.0,0.06952048]
[1735470267106,4.09819,95347.0,95343.0,0.06752048]
[1735470267508,4.09819,95347.0,95343.0,0.06952048]
[1735470268631,4.11464688,95347.0,95343.0,0.06952048]
[1735470268845,4.09819,95346.0,95343.0,0.06952048]
[1735470269209,4.09819,95346.0,95343.0,0.06752048]
[1735470269452,4.09819,95346.0,95343.0,0.06952048]
[1735470269831,4.09819,95346.0,95343.0,0.06671458]
[1735470270034,4.09819,95346.0,95343.0,0.06471458]
[1735470270231,4.09819,95346.0,95343.0,0.06671458]
[1735470270665,4.09819,95346.0,95343.0,0.06471458]
[1735470271206,4.09819,95346.0,95343.0,0.06671458]
[1735470272583,4.09819,95346.0,95343.0,0.06471458]
[1735470272748,4.09819,95346.0,95343.0,0.06671458]
[1735470273472,4.09819,95346.0,95343.0,0.06471458]
[1735470273698,4.09819,95346.0,95343.0,0.06671458]
[1735470273901,4.09819,95347.0,95343.0,0.06671458]
[1735470274239,4.09819,95347.0,95343.0,0.06471458]
[1735470275390,4.09819,95347.0,95343.0,0.06671458]
[1735470275608,4.09919,95347.0,95343.0,0.06671458]
[1735470275907,4.09819,95346.0,95343.0,0.06471458]
[1735470276265,4.09819,95346.0,95343.0,0.06571458]
[1735470276822,4.11464691,95346.0,95343.0,0.06471458]
[1735470277023,4.09819,95345.0,95343.0,0.06471458]
[1735470277205,4.09819,95345.0,95343.0,0.06671458]
[1735470278458,4.09819,95345.0,95343.0,0.06471458]
[1735470278702,4.09819,95345.0,95343.0,0.06671458]
[1735470279330,4.09819,95345.0,95343.0,0.06471458]
[1735470279500,4.09819,95345.0,95343.0,0.06571458]
[1735470280139,4.09819,95345.0,95343.0,0.06471458]
[1735470280291,4.09919,95345.0,95343.0,0.06571458]
[1735470280495,4.09819,95344.0,95343.0,0.05989232]
[1735470281258,4.09819,95345.0,95343.0,0.05989232]
[1735470281559,4.09919,95345.0,95343.0,0.05989232]
[1735470281771,4.09819,95344.0,95343.0,0.05889232]
[1735470281993,0.001,95344.0,95343.0,0.05889232]
[1735470282195,4.09819,95344.0,95343.0,0.05989232]
[1735470282314,4.09819,95345.0,95343.0,0.05989232]
[1735470282515,4.09819,95345.0,95343.0,0.05889232]
[1735470282917,4.09819,95345.0,95343.0,0.05989232]
[1735470283342,4.09819,95345.0,95343.0,0.05889232]
[1735470283539,4.09919,95345.0,95343.0,0.05889232]
[1735470283742,4.09819,95344.0,95343.0,0.05989232]
[1735470284934,4.09819,95344.0,95343.0,0.05889232]
[1735470285137,0.001,95344.0,95343.0,0.05989232]
[1735470285338,4.09919,95344.0,95343.0,0.05989232]
[1735470285783,4.09919,95344.0,95343.0,0.05889232]
[1735470286037,4.09919,95344.0,95343.0,0.05989232]
[1735470287143,0.001,95344.0,95343.0,0.05989232]
[1735470287500,4.09919,95344.0,95343.0,0.05989232]
[1735470288047,4.09819,95344.0,95343.0,0.05989232]
[1735470288249,0.001,95344.0,95343.0,0.05889232]
[1735470288423,4.09919,95344.0,95343.0,0.05989232]
[1735470289654,4.11564695,95344.0,95343.0,0.05989232]
[1735470291481,4.11564695,95344.0,95343.0,0.00159419]
[1735470292282,4.11564695,95344.0,95343.0,0.00059419]
[1735470293384,4.09819,95344.0,95343.0,0.00059419]
[1735470293585,4.38224443,95345.0,95343.0,0.00059419]
[1735470293785,4.10319,95344.0,95343.0,0.00059419]
[1735470294018,4.09819,95344.0,95343.0,0.00059419]
[1735470294428,0.005,95344.0,95343.0,0.00059419]
[1735470294624,4.10419,95344.0,95343.0,0.00059419]
[1735470294804,4.10719,95344.0,95343.0,0.00059419]
[1735470294996,4.10619,95344.0,95343.0,0.00059419]
[1735470295341,4.10119,95344.0,95343.0,0.00059419]
[1735470295544,4.10119,95344.0,95343.0,0.00159419]
[1735470295992,4.10119,95344.0,95343.0,0.00059419]
[1735470296185,4.10119,95344.0,95343.0,0.00159419]
[1735470296399,4.10419,95344.0,95343.0,0.00159419]
[1735470296568,4.12064822,95344.0,95343.0,0.00159419]
[1735470296779,4.11764822,95344.0,95343.0,0.00159419]
[1735470296978,4.12064822,95344.0,95343.0,0.00159419]
[1735470297183,4.11464822,95344.0,95343.0,0.00159419]
[1735470297590,4.11964822,95344.0,95343.0,0.00059419]
[1735470297765,4.11464822,95344.0,95343.0,0.00059419]
[1735470298113,4.11764822,95344.0,95343.0,0.00159419]
[1735470298539,4.11764822,95344.0,95343.0,0.00059419]
[1735470299110,4.11781902,95344.0,95343.0,0.00059419]
[1735470299714,4.12081902,95344.0,95343.0,0.00059419]
[1735470302230,4.12081902,95344.0,95339.0,0.07195651]
[1735470302433,4.09819,95343.0,95339.0,0.07200723]
[1735470302611,4.09819,95343.0,95339.0,0.06395286]
[1735470303695,4.10119,95343.0,95339.0,0.06395286]
[1735470303896,4.09819,95342.0,95339.0,0.06395286]
[1735470305979,4.09819,95342.0,95339.0,0.06495286]
[1735470306194,0.003,95342.0,95339.0,0.06495286]
[1735470306400,4.09819,95341.0,95339.0,0.06495286]
[1735470307368,0.01662902,95344.0,95339.0,0.06495286]
[1735470307597,0.002,95341.0,95339.0,0.06395286]
[1735470307802,4.09819,95340.0,95339.0,0.06395286]
[1735470308315,3.188,95340.0,95339.0,0.06495286]
[1735470308675,3.188,95340.0,95339.0,0.06395286]
[1735470308995,3.188,95340.0,95339.0,0.06495286]
[1735470309200,4.09819,95343.0,95339.0,0.06495286]
[1735470309378,0.002,95340.0,95339.0,0.06495286]
[1735470309599,3.297,95340.0,95339.0,0.06495286]
[1735470309830,3.695,95340.0,95339.0,0.06495286]
[1735470310040,3.716,95340.0,95339.0,0.06495286]
[1735470310377,4.10119,95343.0,95339.0,0.06495286]
[1735470310597,2.335,95342.0,95339.0,0.06395286]
[1735470311046,2.324,95342.0,95339.0,0.06403826]
[1735470311474,0.002,95340.0,95339.0,0.06403826]
[1735470311702,1.553,95340.0,95339.0,0.06403826]
[1735470311876,1.729,95340.0,95339.0,0.06403826]
[1735470312191,1.704,95340.0,95339.0,0.06403826]
[1735470312392,1.704,95340.0,95339.0,0.06503826]
[1735470312536,1.702,95340.0,95339.0,0.06503826]
[1735470312905,0.003,95342.0,95339.0,0.06503826]
[1735470313046,2.231,95341.0,95339.0,0.06503826]
[1735470313243,1.374,95343.0,95339.0,0.06503826]
[1735470313459,0.002,95340.0,95339.0,0.06503826]
[1735470313652,1.012,95340.0,95339.0,0.06403826]
[1735470313901,1.086,95343.0,95339.0,0.06503826]
[1735470314097,0.003,95342.0,95340.0,0.1]
[1735470314280,1.004,95341.0,95340.0,0.1]
[1735470314824,1.004,95341.0,95340.0,0.098]
[1735470314974,1.004,95341.0,95340.0,0.1742]
[1735470315176,0.992,95341.0,95340.0,0.1742]
[1735470316040,1.052,95343.0,95340.0,0.1742]
[1735470316216,0.002,95342.0,95340.0,0.1742]
[1735470316418,0.929,95342.0,95341.0,0.098]
[1735470316761,0.937,95343.0,95342.0,0.0742]
[1735470316914,0.0001708,95344.0,95342.0,0.0742]
[1735470317172,0.938,95343.0,95342.0,0.0742]
[1735470317669,0.935,95343.0,95342.0,0.0742]
[1735470318002,0.935,95343.0,95342.0,0.0722]
[1735470318455,0.96645715,95343.0,95342.0,0.0722]
[1735470318673,0.94445715,95343.0,95342.0,0.0722]
[1735470318992,0.92145715,95343.0,95342.0,0.0722]
[1735470319204,0.89345715,95343.0,95342.0,0.0722]
[1735470319451,0.89545715,95343.0,95342.0,0.0722]
[1735470319662,0.87145715,95343.0,95342.0,0.0722]
[1735470319806,0.85545715,95343.0,95342.0,0.0722]
[1735470323280,0.35045715,95343.0,95342.0,0.0722]
[1735470323503,0.334,95343.0,95342.0,0.0722]
[1735470323681,0.323,95343.0,95342.0,0.0722]
[1735470324087,0.311,95343.0,95342.0,0.0722]
[1735470324287,0.294,95343.0,95342.0,0.0722]
[1735470325461,0.294,95343.0,95342.0,0.06841586]
[1735470326607,0.31045711,95343.0,95342.0,0.06841586]
[1735470328647,0.10700206,95343.0,95342.0,0.06841586]
[1735470328821,0.01645711,95343.0,95342.0,0.06841586]
[1735470329229,0.32845711,95343.0,95342.0,0.06841586]
[1735470329545,0.33245711,95343.0,95342.0,0.06841586]
[1735470329746,0.01645711,95343.0,95342.0,0.06841586]
[1735470329952,0.01645711,95343.0,95342.0,0.06941586]
[1735470330151,0.33845711,95343.0,95342.0,0.06941586]
[1735470330353,0.34045711,95343.0,95342.0,0.06941586]
[1735470330553,0.01745711,95343.0,95342.0,0.09113668]
[1735470330763,0.01745711,95343.0,95342.0,0.18913668]
[1735470330960,0.01745711,95343.0,95342.0,0.18883668]
[1735470331523,0.01745711,95343.0,95342.0,0.2382896]
[1735470332926,0.01745711,95343.0,95342.0,0.2865896]
[1735470333410,0.001,95343.0,95342.0,0.2865896]
[1735470334274,0.001,95343.0,95342.0,0.26486878]
[1735470336431,0.01745549,95343.0,95342.0,0.26486878]
[1735470336856,0.01745549,95343.0,95342.0,0.26495418]
[1735470337158,0.01762629,95343.0,95342.0,0.26495418]
[1735470341912,0.01662629,95343.0,95342.0,0.26395418]
[1735470342187,0.01662629,95343.0,95342.0,0.26895418]
[1735470343695,0.0001708,95343.0,95342.0,0.26895418]
[1735470343907,0.0001708,95343.0,95342.0,0.26695418]
[1735470344512,0.0001708,95343.0,95342.0,0.29368883]
[1735470345051,0.0001708,95343.0,95342.0,0.29568883]
[1735470345450,0.0001708,95343.0,95342.0,0.26895418]
[1735470346707,0.01662601,95343.0,95342.0,0.26895418]
[1735470349512,0.01662601,95343.0,95342.0,0.26595418]
[1735470349665,0.01662601,95343.0,95342.0,0.26895418]
[1735470350599,0.01662601,95343.0,95342.0,0.26695418]
[1735470351013,0.01662601,95343.0,95342.0,0.26895418]
[1735470351565,0.01662601,95343.0,95342.0,0.29588883]
[1735470352594,0.01662601,95343.0,95342.0,0.26895418]
[1735470356330,0.0001708,95343.0,95342.0,0.26895418]
[1735470359384,0.01662611,95343.0,95342.0,0.26895418]
[1735470363502,0.0001708,95343.0,95342.0,0.26895418]
[1735470363704,0.0001708,95343.0,95342.0,0.22065418]
[1735470364648,0.0001708,95343.0,95342.0,0.21565418]
[1735470364946,0.0001708,95343.0,95342.0,0.21865418]
[1735470365918,0.0001708,95343.0,95342.0,0.22065418]
[1735470366548,0.01662637,95343.0,95342.0,0.22065418]
[1735470369920,0.01662637,95343.0,95342.0,0.21865418]
[1735470370669,0.01662637,95343.0,95342.0,0.15053832]
[1735470371121,0.01662637,95343.0,95342.0,0.15253832]
[1735470371565,0.01662637,95343.0,95342.0,0.15358705]
[1735470378066,0.0001708,95343.0,95342.0,0.15358705]
[1735470380906,0.0166265,95343.0,95342.0,0.15358705]
[1735470383403,0.0001708,95343.0,95342.0,0.15253832]
[1735470383601,0.0001708,95343.0,95342.0,0.15358704]
[1735470384480,0.0001708,95343.0,95342.0,0.1766279]
[1735470385966,0.0001708,95343.0,95342.0,0.12717498]
[1735470386171,0.0001708,95343.0,95342.0,0.1766279]
[1735470386615,0.0166265,95343.0,95342.0,0.1766279]
[1735470386817,0.0166265,95343.0,95342.0,0.15358704]
[1735470388924,0.0166265,95343.0,95342.0,0.15158704]
[1735470389249,0.0166265,95343.0,95342.0,0.15258704]
[1735470389383,0.0166265,95343.0,95342.0,0.14958704]
[1735470389784,0.0186265,95343.0,95342.0,0.14858704]
[1735470390195,0.0186265,95343.0,95342.0,0.15358704]
[1735470390763,0.0186265,95343.0,95342.0,0.15158704]
[1735470391101,0.0166265,95343.0,95342.0,0.14858704]
[1735470391511,0.0166265,95343.0,95342.0,0.15158704]
[1735470392075,0.0166265,95343.0,95342.0,0.15358704]
[1735470392578,0.0166265,95343.0,95342.0,0.15158704]
[1735470392820,0.0166265,95343.0,95342.0,0.14858704]
[1735470393026,0.0166265,95343.0,95342.0,0.15358704]
[1735470393341,0.0166265,95343.0,95342.0,0.15158704]
[1735470393560,0.0001708,95343.0,95342.0,0.15358704]
[1735470393766,0.0001708,95343.0,95342.0,0.15658704]
[1735470394053,0.0001708,95343.0,95342.0,0.15058704]
[1735470394322,0.0001708,95343.0,95342.0,0.15358704]
[1735470394533,0.0001708,95343.0,95342.0,0.15058704]
[1735470395031,0.0001708,95343.0,95342.0,0.14858704]
[1735470395453,0.0001708,95343.0,95342.0,0.15058704]
[1735470396051,0.0001708,95343.0,95342.0,0.15358704]
[1735470396411,0.0001708,95343.0,95342.0,0.15158704]
[1735470396741,0.0166265,95343.0,95342.0,0.15358704]
[1735470397099,0.0166265,95343.0,95342.0,0.15058704]
[1735470398539,0.0166265,95343.0,95342.0,0.15358704]
[1735470401088,0.01658455,95343.0,95342.0,0.15358704]
[1735470403700,0.00012885,95343.0,95342.0,0.15358704]
[1735470405617,0.00012885,95343.0,95342.0,0.15158704]
[1735470406208,0.00012885,95343.0,95342.0,0.15058704]
[1735470406620,0.01758434,95343.0,95342.0,0.15458704]
[1735470411858,0.01758434,95343.0,95342.0,0.2599279]
[1735470412059,0.01758434,95343.0,95342.0,0.30637918]
[1735470413327,0.01658434,95343.0,95342.0,0.30037918]
[1735470413528,0.00112885,95343.0,95342.0,0.30737918]
[1735470416762,0.01758351,95343.0,95342.0,0.30737918]
[1735470418836,0.01758351,95343.0,95342.0,0.28423832]
[1735470423264,0.01758351,95343.0,95342.0,0.15453832]
[1735470423423,0.01758351,95343.0,95342.0,0.15558703]
[1735470423622,0.00112885,95343.0,95342.0,0.15558703]
[1735470426619,0.01758447,95343.0,95342.0,0.15558703]
[1735470427187,0.01758447,95343.0,95342.0,0.15258703]
[1735470428359,0.01658447,95343.0,95342.0,0.14858703]
[1735470428637,0.01758447,95343.0,95342.0,0.15758703]
[1735470429053,0.01858447,95343.0,95342.0,0.16258703]
[1735470433560,0.00212885,95343.0,95342.0,0.16258703]
[1735470435186,0.00212885,95343.0,95342.0,0.11313411]
[1735470435390,0.00212885,95343.0,95342.0,0.16258703]
[1735470436662,0.01858391,95343.0,95342.0,0.16258703]
[1735470443701,0.00212885,95343.0,95342.0,0.16258703]
[1735470446755,0.01858391,95343.0,95342.0,0.16258703]
[1735470449907,0.01658391,95343.0,95342.0,0.14858703]
[1735470450446,0.01758391,95343.0,95342.0,0.14858703]
[1735470450785,0.01858391,95343.0,95342.0,0.15858703]